bitfinex-derivatives/quotes_ETHF0:USTF0_20240904
["timestamp","ask_amount","ask_price","bid_price","bid_amount"]
[1725482121698,1.4372,2456.0,2455.8,0.40721]
[1725482122808,1.4372,2456.0,2455.9,0.4072]
[1725482122999,1.4372,2456.0,2455.8,0.4072]
[1725482123200,1.4372,2456.0,2455.7,0.78332923]
[1725482123201,2.04797,2456.0,2455.7,0.78332923]
[1725482123404,0.40721,2455.8,2455.7,0.78332923]
[1725482123806,0.40721,2455.8,2455.7,4.85532923]
[1725482124212,0.40721,2455.8,2455.7,0.78332923]
[1725482125515,0.40721,2455.8,2455.7,4.85532923]
[1725482125717,0.40721,2455.8,2455.7,0.78332923]
[1725482125906,0.40721,2455.8,2455.7,4.85532923]
[1725482126310,0.40721,2455.8,2455.7,1.28059124]
[1725482126716,1.43721,2455.8,2455.7,0.37610923]
[1725482127210,1.43721,2455.8,2455.7,0.78333923]
[1725482127615,0.3757,2456.1,2455.7,4.44810923]
[1725482127811,2.93610923,2456.2,2456.0,0.40718]
[1725482128011,5.39113923,2456.2,2456.1,0.3645]
[1725482129812,4.37325923,2456.2,2456.1,0.77166]
[1725482130012,4.37325923,2456.2,2456.1,0.3645]
[1725482131811,4.37325923,2456.2,2456.1,0.77166]
[1725482132506,1.43715,2456.2,2456.1,0.77166]
[1725482133421,1.43715,2456.2,2456.1,0.3645]
[1725482133720,1.43715,2456.2,2456.1,0.77166]
[1725482134315,1.43715,2456.2,2456.1,1.26861544]
[1725482134515,0.40714,2456.3,2456.2,0.40714]
[1725482137411,0.40718,2456.1,2456.0,0.40717]
[1725482137617,1.42508,2456.1,2456.0,0.49702112]
[1725482137812,2.15618,2456.1,2456.0,0.49702112]
[1725482138021,2.15618,2456.1,2455.9,0.79639]
[1725482138022,0.40718,2456.0,2455.9,0.79639]
[1725482138222,0.40718,2456.0,2455.9,1.29349655]
[1725482138417,1.43718,2456.0,2455.9,1.29349655]
[1725482139017,1.43718,2456.0,2455.9,0.88630655]
[1725482139322,1.43718,2456.0,2455.9,1.84106404]
[1725482139622,0.40718,2456.0,2455.9,1.84106404]
[1725482140220,1.13827,2456.1,2456.0,0.40718]
[1725482140522,1.13827,2456.1,2456.0,0.90428655]
[1725482141420,0.40717,2456.1,2456.0,0.90428655]
[1725482141625,1.81656,2456.2,2456.1,0.40716]
[1725482141818,0.40716,2456.2,2456.1,0.40716]
[1725482143128,1.43714,2456.3,2456.2,0.40713]
[1725482147125,0.40716,2456.2,2456.1,0.40716]
[1725482147431,1.16902,2456.4,2456.3,0.40713]
[1725482147624,2.19902,2456.4,2456.3,0.40713]
[1725482149438,1.82282,2456.4,2456.3,0.40713]
[1725482151631,0.79282,2456.4,2456.3,0.40713]
[1725482151937,1.82282,2456.4,2456.3,0.40713]
[1725482152332,0.40714,2456.3,2456.2,0.40714]
[1725482152534,0.40714,2456.3,2456.2,0.90396127]
[1725482152734,0.40714,2456.3,2456.2,0.40714]
[1725482153127,0.40714,2456.3,2456.2,0.90398905]
[1725482153332,1.82283,2456.4,2456.3,0.40713]
[1725482155039,1.03,2456.4,2456.3,0.40713]
[1725482155237,4.64491,2456.5,2456.4,0.40712]
[1725482155431,4.64491,2456.5,2456.4,1.17592]
[1725482156134,4.64491,2456.5,2456.4,0.40712]
[1725482156338,5.01831,2456.5,2456.4,0.40712]
[1725482157138,1.81051,2456.5,2456.4,0.40712]
[1725482157537,5.01831,2456.5,2456.4,0.40712]
[1725482160334,0.40713,2456.4,2456.3,0.40712]
[1725482160547,0.40713,2456.4,2456.1,1.01792]
[1725482160548,0.40716,2456.2,2456.1,0.40715]
[1725482160940,0.79126,2456.2,2456.1,0.90398878]
[1725482161143,0.3841,2456.2,2456.1,1.45121986]
[1725482161344,0.40714,2456.3,2456.2,0.40715]
[1725482161345,1.03,2456.3,2456.2,0.40715]
[1725482161649,1.03,2456.3,2456.2,1.82931986]
[1725482161848,1.43713,2456.3,2456.2,2.21151986]
[1725482162951,1.43713,2456.3,2456.2,1.16745]
[1725482163349,1.43713,2456.3,2456.2,1.71447107]
[1725482163844,1.43713,2456.3,2456.2,2.21108094]
[1725482165248,1.03,2456.3,2456.2,3.22896094]
[1725482165450,5.03691,2456.5,2456.2,7.61034064]
[1725482165644,3.2078,2456.5,2456.4,1.42492]
[1725482165851,3.2078,2456.5,2456.4,3.18579708]
[1725482166153,3.2078,2456.5,2456.4,2.16799708]
[1725482166349,3.2078,2456.5,2456.4,2.16784346]
[1725482166538,3.2078,2456.5,2456.4,1.67123359]
[1725482166746,3.2078,2456.5,2456.4,2.88484201]
[1725482167353,0.40709,2456.6,2456.5,0.4071]
[1725482167555,0.40709,2456.6,2456.5,1.45044307]
[1725482167753,0.40709,2456.6,2456.5,1.81834307]
[1725482168645,1.43709,2456.6,2456.5,1.81834307]
[1725482169351,1.43709,2456.6,2456.5,1.27147562]
[1725482169546,1.43709,2456.6,2456.5,1.81852521]
[1725482170348,2.54217,2456.7,2456.6,0.40708]
[1725482170545,2.54217,2456.7,2456.6,0.90355562]
[1725482171255,2.54217,2456.7,2456.6,0.40708]
[1725482171647,2.54217,2456.7,2456.6,0.90379522]
[1725482174353,3.55984,2456.7,2456.6,0.49671522]
[1725482174552,0.40708,2456.6,2456.5,0.3679]
[1725482174751,1.43708,2456.6,2456.5,0.40709]
[1725482174950,1.43708,2456.6,2456.5,0.90388249]
[1725482175457,1.43708,2456.6,2456.5,0.40709]
[1725482176061,1.43708,2456.6,2456.5,0.90388823]
[1725482176759,1.43708,2456.6,2456.5,0.40709]
[1725482178554,1.43708,2456.6,2456.5,0.90395344]
[1725482178861,1.43708,2456.6,2456.5,0.90395364]
[1725482179358,0.40712,2456.4,2456.3,0.77232]
[1725482179558,2.45492,2456.4,2456.3,1.04416924]
[1725482179762,2.82272,2456.4,2456.3,1.04416924]
[1725482181562,3.84052,2456.4,2456.3,1.04416924]
[1725482181760,3.84052,2456.4,2456.3,0.49686745]
[1725482181761,7.91172,2456.4,2456.3,0.49686745]
[1725482181955,0.40716,2456.1,2456.0,0.3675]
[1725482182263,1.43716,2456.1,2456.0,0.91534307]
[1725482182467,1.82876,2456.1,2456.0,2.1311953]
[1725482182656,1.82876,2456.1,2456.0,1.41273254]
[1725482182859,2.84668,2456.1,2456.0,1.04523254]
[1725482183156,2.84668,2456.1,2456.0,0.49738947]
[1725482183967,2.84668,2456.1,2456.0,1.0454424]
[1725482184161,7.9358,2456.1,2456.0,0.49738947]
[1725482184366,0.4072,2455.9,2455.8,0.3575]
[1725482184565,2.4552,2455.9,2455.8,1.04580008]
[1725482184751,0.40721,2455.8,2455.7,0.00610923]
[1725482184952,2.80899,2455.8,2455.7,0.50386171]
[1725482185249,2.80899,2455.8,2455.7,0.00610923]
[1725482186763,1.79095,2455.8,2455.7,0.00610923]
[1725482188257,5.86295,2455.8,2455.7,0.00610923]
[1725482189270,12.88099,2455.8,2455.7,0.00610923]
[1725482189559,12.88099,2455.8,2455.1,0.40733]
[1725482189560,0.40732,2455.2,2455.1,0.3656]
[1725482189753,1.43732,2455.2,2455.1,0.86346889]
[1725482189953,1.43732,2455.2,2455.1,0.3656]
[1725482190359,0.40735,2455.0,2454.9,0.00610923]
[1725482190664,1.43735,2455.0,2454.9,0.00610923]
[1725482195075,2.45573,2455.0,2454.9,0.00610923]
[1725482195275,6.52933,2455.0,2454.9,0.00610923]
[1725482195459,6.52933,2455.0,2454.1,4.32155]
[1725482195460,0.40745,2454.4,2454.3,0.3763]
[1725482196164,0.76605,2454.4,2454.3,0.3763]
[1725482199775,0.40748,2454.3,2454.1,0.77560923]
[1725482199976,1.03,2454.2,2454.1,0.77560923]
[1725482200271,1.43748,2454.2,2454.1,0.36810923]
[1725482201967,1.43748,2454.2,2454.1,0.77560923]
[1725482202163,1.43748,2454.2,2454.1,0.36810923]
[1725482203269,2.45619,2454.2,2454.1,0.36810923]
[1725482203982,2.45619,2454.2,2454.1,0.00610923]
[1725482204272,2.81829,2454.2,2454.1,0.00610923]
[1725482204479,6.89269,2454.2,2454.1,0.00610923]
[1725482206579,6.25278,2454.2,2454.1,0.00610923]
[1725482206879,1.03,2454.2,2454.1,0.41360923]
[1725482207073,1.43748,2454.2,2454.1,0.41360923]
[1725482207379,1.03,2454.2,2454.1,0.41360923]
[1725482208874,1.03,2454.2,2454.1,0.77450923]
[1725482209382,1.43748,2454.2,2454.1,0.77450923]
[1725482209778,1.03,2454.2,2454.1,0.77450923]
[1725482210192,1.43748,2454.2,2454.1,0.77450923]
[1725482210689,1.03,2454.2,2454.1,0.77450923]
[1725482210893,1.43748,2454.2,2454.1,0.77450923]
[1725482211195,1.03,2454.2,2454.1,0.77450923]
[1725482212082,1.43748,2454.2,2454.1,0.77450923]
[1725482213485,1.43748,2454.2,2454.1,0.41360923]
[1725482213693,1.80108,2454.2,2454.1,0.41360923]
[1725482216192,1.80108,2454.2,2454.1,0.00610923]
[1725482216399,1.80108,2454.2,2454.1,0.41360923]
[1725482219085,1.80108,2454.2,2454.1,0.00610923]
[1725482220401,1.80108,2454.2,2454.1,0.41360923]
[1725482221105,1.43748,2454.2,2454.1,0.41360923]
[1725482221698,1.03,2454.2,2454.1,1.43235923]
[1725482221893,1.03,2454.3,2454.2,0.40748]
[1725482222094,1.43746,2454.3,2454.2,0.40748]
[1725482222795,1.03,2454.3,2454.2,0.40748]
[1725482223901,1.03,2454.3,2454.2,1.42619]
[1725482224619,1.43746,2454.3,2454.2,1.42619]
[1725482224802,1.03,2454.3,2454.2,1.42619]
[1725482224991,3.61526,2454.4,2454.3,0.40746]
[1725482225198,4.2378,2454.4,2454.3,0.40746]
[1725482226103,4.64525,2454.4,2454.3,0.40746]
[1725482233504,4.2378,2454.4,2454.3,1.42613]
[1725482233710,1.03,2454.5,2454.4,2.44469]
[1725482235605,1.03,2454.5,2454.4,2.94253664]
[1725482236206,1.03,2454.5,2454.4,2.94252426]
[1725482236413,1.03,2454.5,2454.4,0.40745]
[1725482236414,1.43743,2454.5,2454.4,0.40745]
[1725482236617,0.40747,2454.4,2454.3,0.40745]
[1725482236811,3.57279,2454.4,2454.3,0.49791403]
[1725482237419,1.42615,2454.3,2454.2,0.40748]
[1725482237614,0.40748,2454.3,2454.2,0.40746]
[1725482237917,0.40748,2454.3,2454.2,0.90546452]
[1725482238513,3.2078,2454.4,2454.3,0.40746]
[1725482238715,1.43745,2454.4,2454.3,0.90546452]
[1725482238923,1.43745,2454.4,2454.3,0.40746]
[1725482239114,1.43745,2454.4,2454.3,0.90542416]
[1725482239417,1.43745,2454.4,2454.3,1.45393733]
[1725482240317,1.43745,2454.4,2454.3,2.17314867]
[1725482240518,1.43745,2454.4,2454.3,2.17312486]
[1725482240910,1.43745,2454.4,2454.3,1.45393733]
[1725482241316,2.45607,2454.4,2454.3,1.04647733]
[1725482246611,2.45607,2454.4,2454.3,1.04553161]
[1725482247123,1.43745,2454.4,2454.3,1.45299161]
[1725482247314,1.43745,2454.4,2454.3,2.1716203]
[1725482248219,1.03,2454.4,2454.3,2.9812672]
[1725482248823,1.03,2454.4,2454.3,2.98151607]
[1725482249221,1.43745,2454.4,2454.3,2.98151607]
[1725482249524,1.43745,2454.4,2454.3,2.1716203]
[1725482250317,1.43745,2454.4,2454.3,2.98155557]
[1725482250517,1.43745,2454.4,2454.3,2.98171608]
[1725482250725,1.43745,2454.4,2454.3,2.48444807]
[1725482251135,1.43745,2454.4,2454.3,2.98208721]
[1725482254522,1.43745,2454.4,2454.3,3.47992988]
[1725482254821,1.43745,2454.4,2454.3,2.98229074]
[1725482257331,2.45607,2454.4,2454.3,2.57485889]
[1725482257524,2.45607,2454.4,2454.3,1.76490081]
[1725482257722,5.66387,2454.4,2454.3,1.04592424]
[1725482257923,1.42619,2454.2,2454.1,0.00610923]
[1725482258129,1.03,2454.2,2453.5,1.14709]
[1725482258428,1.43758,2453.6,2453.5,1.24685321]
[1725482258726,1.43758,2453.6,2453.5,0.7395]
[1725482258927,1.43758,2453.6,2453.5,2.09842097]
[1725482259326,1.43758,2453.6,2453.5,3.31264076]
[1725482260125,1.43758,2453.6,2453.5,3.72024076]
[1725482260436,1.43758,2453.6,2453.5,1.04507673]
[1725482260437,9.74034,2453.6,2453.5,1.04507673]
[1725482260725,0.40761,2453.4,2453.3,0.00610923]
[1725482260918,2.45665,2453.4,2453.3,0.00610923]
[1725482261122,1.43761,2453.4,2453.3,0.00610923]
[1725482261525,1.03,2453.4,2453.3,0.00610923]
[1725482261731,1.43761,2453.4,2453.3,0.00610923]
[1725482269424,1.43761,2453.4,2453.3,0.41373923]
[1725482269731,1.03,2453.4,2453.3,0.41373923]
[1725482269939,1.43761,2453.4,2453.3,0.41373923]
[1725482270639,1.03,2453.4,2453.3,0.41373923]
[1725482270833,1.03,2453.4,2453.3,4.48973923]
[1725482272135,1.03,2453.4,2453.3,0.41373923]
[1725482274638,1.43761,2453.4,2453.3,0.41373923]
[1725482275643,2.45665,2453.4,2453.3,0.00610923]
[1725482276142,1.43761,2453.4,2453.3,0.41373923]
[1725482277235,1.43761,2453.4,2453.3,0.00610923]
[1725482277440,2.45665,2453.4,2453.3,0.00610923]
[1725482279536,0.40761,2453.4,2453.3,0.41373923]
[1725482279751,1.43761,2453.4,2453.3,0.00610923]
[1725482281345,1.43761,2453.4,2453.3,0.41373923]
[1725482282140,1.43761,2453.4,2453.3,0.00610923]
[1725482284040,3.61538,2453.6,2453.5,0.4076]
[1725482284342,4.64538,2453.6,2453.5,0.4076]
[1725482284534,4.2378,2453.6,2453.3,0.00610923]
[1725482284741,1.43761,2453.4,2453.3,0.00610923]
[1725482284942,2.45665,2453.4,2453.3,0.00610923]
[1725482286442,5.66445,2453.4,2453.3,0.00610923]
[1725482292348,1.43761,2453.4,2453.3,0.41373923]
[1725482292541,1.03,2453.4,2453.3,0.41373923]
[1725482293860,1.43761,2453.4,2453.3,0.41373923]
[1725482294651,1.43761,2453.4,2453.3,0.00610923]
[1725482296744,0.40759,2453.6,2453.3,0.41373923]
[1725482296949,1.03,2453.5,2453.4,0.744]
[1725482297149,1.03,2453.5,2453.4,1.15161]
[1725482297357,1.03,2453.5,2453.4,5.22761]
[1725482298249,1.03,2453.5,2453.4,1.15161]
[1725482299459,1.4376,2453.5,2453.4,1.15161]
[1725482301662,1.03,2453.5,2453.3,0.00610923]
[1725482301962,1.03,2453.5,2453.4,0.90409378]
[1725482302459,1.03,2453.5,2453.4,1.45242606]
[1725482302950,1.03,2453.5,2453.4,5.52842606]
[1725482303449,1.03,2453.5,2453.4,7.05602264]
[1725482304862,1.03,2453.5,2453.4,5.69754113]
[1725482305060,1.03,2453.5,2453.4,4.48361]
[1725482305268,1.03,2453.5,2453.4,5.84208454]
[1725482305462,1.03,2453.6,2453.5,0.4076]
[1725482305662,3.2078,2453.7,2453.6,0.40758]
[1725482305858,3.2078,2453.7,2453.6,6.58515454]
[1725482306263,3.2078,2453.7,2453.6,8.1005399]
[1725482306461,1.03610923,2453.8,2453.7,0.40756]
[1725482306765,0.00610923,2453.8,2453.7,5.84123454]
[1725482306951,0.00610923,2453.8,2453.7,12.55869838]
[1725482307356,0.00610923,2453.8,2453.7,13.05512374]
[1725482309857,0.00610923,2453.8,2453.7,7.05512374]
[1725482310059,0.00610923,2453.8,2453.7,13.05512374]
[1725482310259,0.00610923,2453.8,2453.7,7.05512374]
[1725482311178,0.00610923,2453.8,2453.7,13.05512374]
[1725482311467,0.095,2454.2,2454.0,0.40751]
[1725482311468,1.03,2454.1,2454.0,0.40751]
[1725482311658,1.03,2454.1,2454.0,1.45183017]
[1725482312570,1.03610923,2454.3,2454.2,0.40748]
[1725482318476,1.03610923,2454.3,2454.2,1.42619]
[1725482320970,1.03610923,2454.3,2454.2,1.80949]
[1725482321473,6.12917923,2454.3,2454.0,0.4075]
[1725482321772,2.16448,2454.2,2454.1,0.40749]
[1725482322179,1.757,2454.2,2454.1,0.40749]
[1725482322378,2.16448,2454.2,2454.1,0.40749]
[1725482323079,1.757,2454.2,2454.1,0.40749]
[1725482323772,0.00610923,2454.3,2454.1,0.40749]
[1725482323773,1.03610923,2454.3,2454.2,0.40748]
[1725482325478,1.03610923,2454.3,2454.2,1.42619]
[1725482329276,1.03610923,2454.3,2454.2,0.40748]
[1725482342589,1.03610923,2454.3,2454.2,1.42619]
[1725482343290,1.03610923,2454.3,2454.2,0.40748]
[1725482346195,1.03610923,2454.3,2454.2,1.42619]
[1725482347300,1.03610923,2454.3,2454.2,1.97380754]
[1725482347499,1.03610923,2454.3,2454.2,2.46961688]
[1725482348095,1.03610923,2454.3,2454.2,0.95509754]
[1725482348302,1.03610923,2454.3,2454.2,1.45089879]
[1725482350000,5.51796923,2454.3,2454.2,1.04341879]
[1725482350301,0.40751,2454.1,2453.7,1.40001]
[1725482350500,1.7906,2454.0,2453.9,0.40753]
[1725482350793,1.7906,2454.0,2453.9,0.95530452]
[1725482350997,1.7906,2454.0,2453.9,1.76466672]
[1725482351202,0.76459,2454.2,2454.1,0.4075]
[1725482351203,1.3871,2454.2,2454.1,0.4075]
[1725482351401,1.79458,2454.2,2454.1,1.76463672]
[1725482351793,1.79458,2454.2,2454.1,2.97734367]
[1725482353797,1.03,2454.2,2454.1,1.62020695]
[1725482353995,0.38710923,2454.3,2454.2,1.42619]
[1725482354203,0.38710923,2454.3,2454.2,7.20362577]
[1725482354994,0.38710923,2454.3,2454.2,6.18491577]
[1725482357102,0.38710923,2454.3,2454.2,4.82798695]
[1725482357401,0.38710923,2454.3,2454.2,6.18490026]
[1725482357906,0.38710923,2454.3,2454.2,7.20361026]
[1725482359403,0.79456923,2454.3,2454.2,2.97710026]
[1725482359700,0.38710923,2454.3,2454.2,2.97710026]
[1725482363705,0.38710923,2454.3,2454.2,1.62008807]
[1725482363911,0.38710923,2454.3,2454.2,1.76457073]
[1725482364311,0.38710923,2454.3,2454.2,2.97724754]
[1725482373416,0.38710923,2454.3,2454.2,1.62015681]
[1725482373719,0.38710923,2454.3,2454.2,1.76280125]
[1725482374113,0.38710923,2454.3,2454.2,2.97389233]
[1725482376214,0.38710923,2454.3,2454.2,2.97358868]
[1725482376816,0.38710923,2454.3,2454.2,2.9732883]
[1725482377015,0.38710923,2454.3,2454.2,2.97332655]
[1725482379920,0.38710923,2454.3,2453.9,6.13235633]
[1725482379921,1.4263,2454.0,2453.9,0.49986244]
[1725482380125,4.83290087,2454.0,2453.9,0.49986244]
[1725482380315,14.91931087,2454.0,2453.9,1.85592216]
[1725482380626,14.91931087,2454.0,2453.9,1.21173368]
[1725482380814,9.29391087,2454.0,2453.9,1.21173368]
[1725482381123,15.29391087,2454.0,2453.9,1.21173368]
[1725482381322,15.29391087,2454.0,2453.5,4.99239]
[1725482381323,0.40755,2453.8,2453.5,4.99239]
[1725482381519,1.4033,2453.7,2453.6,0.54745171]
[1725482383119,1.4033,2453.7,2453.5,0.79539]
[1725482385929,1.4033,2453.7,2453.3,0.00610923]
[1725482386132,1.03,2453.4,2453.3,0.00610923]
[1725482386327,1.03,2453.4,2453.3,1.3630569]
[1725482386634,1.03,2453.4,2453.3,0.55377253]
[1725482388418,1.8057,2453.4,2453.3,0.55377253]
[1725482389531,1.8057,2453.4,2453.3,0.00610923]
[1725482389735,1.8057,2453.4,2453.3,0.55379989]
[1725482390230,1.8057,2453.4,2453.3,0.00610923]
[1725482390430,2.21331,2453.4,2453.3,0.00610923]
[1725482390824,1.8057,2453.4,2453.3,0.00610923]
[1725482392029,1.8057,2453.4,2453.3,0.50052285]
[1725482392231,1.8057,2453.4,2453.3,0.50051021]
[1725482392432,1.8057,2453.4,2453.3,0.00610923]
[1725482392830,1.8057,2453.4,2453.3,0.90812822]
[1725482393025,1.8057,2453.4,2453.3,0.41373923]
[1725482394230,1.8057,2453.4,2453.3,0.00610923]
[1725482395331,2.21331,2453.4,2453.3,0.00610923]
[1725482396838,1.8057,2453.4,2453.3,0.41373923]
[1725482397636,1.8057,2453.4,2453.3,0.00610923]
[1725482398236,1.8057,2453.4,2453.3,0.41373923]
[1725482400431,1.03,2453.4,2453.3,0.41373923]
[1725482403537,1.43761,2453.4,2453.3,0.00610923]
[1725482404039,1.03,2453.4,2453.3,0.41373923]
[1725482406234,1.43761,2453.4,2453.3,0.41373923]
[1725482406635,1.03,2453.4,2453.3,0.41373923]
[1725482406836,2.93610923,2453.8,2453.7,0.40756]
[1725482407048,0.7449,2454.2,2454.0,0.40751]
[1725482407337,1.03,2454.1,2454.0,0.40751]
[1725482407739,1.03,2454.1,2453.9,0.40752]
[1725482407942,1.03,2454.1,2454.0,0.40751]
[1725482414947,1.03,2454.1,2454.0,3.61531]
[1725482415152,1.03,2454.1,2454.0,0.40751]
[1725482415656,1.03,2454.1,2453.8,1.1506]
[1725482415847,1.43753,2453.9,2453.4,3.2078]
[1725482416045,0.3645,2453.8,2453.7,0.40755]
[1725482416857,1.3945,2453.8,2453.7,0.40755]
[1725482417552,1.03,2453.8,2453.7,0.40755]
[1725482419151,1.03,2453.8,2453.7,0.90145731]
[1725482420044,1.03,2453.8,2453.7,0.40755]
[1725482420245,1.03,2453.8,2453.7,0.90140361]
[1725482420450,1.03,2453.9,2453.8,0.40754]
[1725482420654,1.03,2453.9,2453.8,0.90139361]
[1725482420853,1.03,2453.9,2453.8,0.40754]
[1725482421755,1.03,2453.9,2453.8,0.90134862]
[1725482422845,3.30890923,2454.3,2454.2,0.40748]
[1725482423149,1.03610923,2454.3,2454.2,0.40748]
[1725482423349,0.00610923,2454.3,2454.2,0.40748]
[1725482425061,0.00610923,2454.3,2454.2,2.46681409]
[1725482425362,1.03,2454.6,2454.5,0.40743]
[1725482425661,4.33000923,2454.8,2454.7,0.4074]
[1725482425851,1.3939,2454.8,2454.7,0.4074]
[1725482429465,1.03,2454.8,2454.7,0.4074]
[1725482430158,1.03,2454.9,2454.8,0.40738]
[1725482430353,0.00610923,2455.0,2454.9,1.42578]
[1725482430658,0.00610923,2455.0,2454.9,5.49938]
[1725482430957,3.03110923,2455.3,2455.2,1.4256]
[1725482430958,0.095,2455.3,2455.2,1.4256]
[1725482431163,0.095,2455.6,2455.5,0.40726]
[1725482431355,1.14,2455.8,2455.7,0.40723]
[1725482431356,1.03,2455.8,2455.7,0.40723]
[1725482433966,2.46,2456.0,2455.9,0.4072]
[1725482434454,6.532,2456.0,2455.8,0.4072]
[1725482434663,2.46,2456.0,2455.8,0.4072]
[1725482437558,2.46,2456.0,2455.5,3.2078]
[1725482437762,2.86723,2455.7,2455.5,3.2078]
[1725482438069,0.734,2455.6,2455.5,3.2078]
[1725482438262,0.734,2455.6,2455.5,3.61506]
[1725482438773,2.46,2455.9,2455.5,3.2078]
[1725482438972,3.2154,2455.9,2455.5,3.2078]
[1725482439267,3.2154,2455.9,2455.6,0.40724]
[1725482439268,3.62261,2455.9,2455.6,0.40724]
[1725482440169,3.62261,2455.9,2455.7,0.40723]
[1725482440366,3.62261,2455.9,2455.6,0.40724]
[1725482440857,3.2154,2455.9,2455.7,0.40723]
[1725482441665,3.6226,2455.9,2455.7,0.40723]
[1725482442764,3.2154,2455.9,2455.7,0.40723]
[1725482445871,3.2154,2455.9,2455.8,0.40721]
[1725482446472,3.2154,2455.9,2455.7,0.40722]
[1725482446675,3.6226,2455.9,2455.7,0.40722]
[1725482447771,4.23341,2455.9,2455.2,4.22607]
[1725482447971,3.62261,2455.9,2455.7,0.40723]
[1725482454077,1.03,2455.8,2455.7,0.40723]
[1725482460879,1.03,2455.8,2455.2,4.22606]
[1725482460880,5.50923,2455.8,2455.2,4.22606]
[1725482461076,1.03,2455.6,2455.5,0.40726]
[1725482461287,0.095,2456.1,2456.0,2.4431]
[1725482461480,0.7242,2456.5,2456.4,0.40712]
[1725482461683,0.7242,2456.5,2456.4,1.42492]
[1725482463073,0.7242,2456.5,2456.4,0.40712]
[1725482463582,1.0968,2456.5,2456.4,0.40712]
[1725482468176,1.5039,2456.5,2456.3,0.40712]
[1725482468377,1.0968,2456.5,2456.3,0.40712]
[1725482469589,1.0968,2456.5,2456.4,0.40712]
[1725482469785,1.0968,2456.5,2456.3,0.40712]
[1725482470887,1.01784,2456.3,2456.2,0.00610923]
[1725482471082,3.47281,2456.3,2456.2,0.00610923]
[1725482471282,3.47281,2456.3,2455.3,2.04823]
[1725482471283,1.43724,2455.7,2455.3,3.9624]
[1725482471483,0.3919,2455.6,2455.5,0.40725]
[1725482473786,0.3919,2455.6,2455.3,3.96850923]
[1725482474087,0.3919,2455.6,2455.4,0.40727]
[1725482474892,0.3919,2455.6,2455.5,0.40726]
[1725482476084,2.46610923,2455.8,2455.6,0.40724]
[1725482476085,0.00610923,2455.8,2455.6,0.40724]
[1725482476594,0.00610923,2455.8,2455.7,0.40723]
[1725482477300,2.93610923,2456.2,2456.1,0.40716]
[1725482477501,0.8504,2456.3,2456.2,0.40715]
[1725482477502,0.7554,2456.3,2456.2,0.40715]
[1725482477698,0.7554,2456.3,2456.1,0.40716]
[1725482478196,0.7554,2456.3,2456.2,0.40715]
[1725482480693,0.7554,2456.3,2456.1,0.40715]
[1725482482591,6.5312,2456.2,2455.4,4.226]
[1725482482798,0.4072,2455.9,2455.6,0.40723]
[1725482483100,0.3751,2455.8,2455.4,3.5835]
[1725482483302,1.1532,2455.8,2455.6,0.40725]
[1725482483599,1.56042,2455.8,2455.6,0.40725]
[1725482484298,1.1532,2455.8,2455.6,0.40725]
[1725482484603,1.1532,2455.8,2455.5,0.40726]
[1725482484604,1.56042,2455.8,2455.5,0.40726]
[1725482486803,1.56042,2455.8,2455.6,0.40724]
[1725482488205,1.56042,2455.8,2455.5,0.40725]
[1725482488406,1.56042,2455.8,2455.6,0.49391984]
[1725482488602,1.56042,2455.8,2455.5,0.40725]
[1725482489105,0.40724,2455.7,2455.4,0.78297]
[1725482489404,0.40724,2455.7,2455.4,0.40727]
[1725482490201,0.40724,2455.7,2455.5,0.40726]
[1725482491201,0.40726,2455.6,2455.4,0.40727]
[1725482495608,0.40726,2455.5,2455.3,0.41339923]
[1725482495806,0.76418,2455.4,2455.3,0.00610923]
[1725482496010,1.78239,2455.4,2455.3,0.00610923]
[1725482497004,5.85519,2455.4,2455.3,0.00610923]
[1725482499007,0.40728,2455.4,2455.3,0.00610923]
[1725482499206,3.68135866,2455.5,2455.4,0.40728]
[1725482499207,0.40726,2455.5,2455.4,0.40728]
[1725482501006,0.40726,2455.5,2455.3,0.00610923]
[1725482501213,0.40726,2455.5,2455.4,0.40728]
[1725482501413,0.40726,2455.6,2455.4,0.40728]
[1725482501613,0.40726,2455.5,2455.4,0.40728]
[1725482503411,0.40726,2455.6,2455.4,0.40728]
[1725482503613,0.40726,2455.5,2455.4,0.40728]
[1725482504414,0.40726,2455.6,2455.4,0.40728]
[1725482504614,0.40726,2455.5,2455.4,0.40728]
[1725482505509,0.40726,2455.5,2455.3,0.39130923]
[1725482505510,0.40726,2455.5,2455.3,0.79858923]
[1725482507309,0.40728,2455.4,2455.3,0.00610923]
[1725482507517,0.3544,2455.4,2455.3,0.41340923]
[1725482507718,0.76168,2455.4,2455.3,0.41340923]
[1725482508016,0.76168,2455.4,2455.3,0.00610923]
[1725482508219,1.77989,2455.4,2455.3,0.00610923]
[1725482508515,5.85269,2455.4,2455.3,0.00610923]
[1725482513519,9.06049,2455.4,2455.3,0.00610923]
[1725482513919,0.76168,2455.4,2455.3,0.00610923]
[1725482514109,7.0779,2455.7,2455.4,0.40727]
[1725482514414,0.40727,2455.5,2455.4,0.40727]
[1725482515014,0.40726,2455.5,2455.4,0.40727]
[1725482515216,0.40726,2455.5,2455.3,0.41338923]
[1725482515425,0.40728,2455.4,2455.3,0.41338923]
[1725482517521,0.40728,2455.4,2455.3,0.00610923]
[1725482517921,4.63329,2455.4,2455.3,0.00610923]
[1725482518117,3.97698,2455.4,2455.3,0.00610923]
[1725482519226,4.99519,2455.4,2455.3,0.00610923]
[1725482522121,3.97698,2455.4,2455.3,0.00610923]
[1725482522323,3.97698,2455.4,2455.3,0.41340923]
[1725482522530,3.61508,2455.4,2455.3,0.41340923]
[1725482522730,3.61508,2455.4,2455.3,0.00610923]
[1725482524524,0.40728,2455.4,2455.3,0.00610923]
[1725482524733,1.42549,2455.4,2455.3,0.00610923]
[1725482525434,12.5165,2455.4,2455.3,0.00610923]
[1725482525729,6.5165,2455.4,2455.3,0.00610923]
[1725482525920,12.5165,2455.4,2455.3,0.00610923]